[Event "14th BPB Limburg Open 2022"]
[Site "Maastricht"]
[Date "2022.06.06"]
[Round "7.2"]
[White "Warmerdam, Max"]
[Black "Dardha, Daniel"]
[Result "1/2-1/2"]
[ECO "D33"]
[WhiteElo "2614"]
[BlackElo "2561"]
[Annotator "TA"]
[PlyCount "236"]
[EventDate "2022.06.03"]
[EventType "swiss"]
[EventCountry "NED"]
[SourceTitle "playchess.com"]
[Source "ChessBase"]
[SourceQuality "1"]
[TimeControl "7200+15"]

{[%evp 66,236,10,0,6,0,20,20,20,20,20,20,43,43,48,0,0,0,0,0,33,33,34,0,0,0,32,31,31,31,31,31,31,8,8,8,8,8,8,8,8,0,0,0,8,8,29,8,8,8,8,8,8,8,8,8,8,8,8,8,8,8,8,8,29,29,41,29,41,8,8,8,8,8,8,8,8,8,8,8,8,8,8,8,8,8,8,8,8,8,8,8,8,8,8,8,8,8,8,8,8,8,8,8,8,8,8,0,0,0,0,0,0,0,0,0,8,8,8,8,8,8,8,0,8,0,8,0,8,0,0,0,0,0,0,0,0,0,0,0,8,0,0,0,0,0,8,8,8,0,8,8,8,0,8,0,0,0,8,0,0,0,0,0,0,0,0,0,0,0,8,8,8]} 1. c4 {[%emt 0:00:33]} Nf6 {[%emt 0:00:59]} 2. Nc3 {[%emt 0:00:06]} c5 {[%emt 0:00:35]} 3. Nf3 {[%emt 0:01:08]} e6 {[%emt 0:00:11]} 4. g3 {[%emt 0:02:21]} d5 {[%emt 0:01:24]} 5. cxd5 {[%emt 0:00:05]} exd5 {[%emt 0:00:05]} 6. d4 {[%emt 0:00:03]} Nc6 {[%emt 0:00:11]} 7. a3 {[%emt 0:00:05]} c4 {[%emt 0:05:39]} 8. Bg5 {[%emt 0:04:19]} Be7 {[%emt 0:01:45]} 9. Bg2 {[%emt 0:02:15]} O-O {[%emt 0:02:15]} 10. e3 {[%emt 0:29:15]} Be6 {[%emt 0:02:56]} 11. O-O {[%emt 0:13:16]} h6 {[%emt 0:06:18]} 12. Bxf6 {[%emt 0:00:05]} Bxf6 {[%emt 0:00:04]} 13. Kh1 {[%emt 0:09:19]} Qd7 {[%emt 0:10:24]} 14. Ng1 {[%emt 0:00:46]} b5 {[%emt 0:12:35]} 15. Nge2 {[%emt 0:01:26]} Rab8 {[%emt 0:15:37]} 16. Nf4 {[%emt 0:00:40]} Ne7 {[%emt 0:00:05]} 17. Nh5 {[%emt 0:01:44]} Bg5 {[%emt 0:02:32]} 18. h4 {[%emt 0:04:09]} Bg4 {[%emt 0:16:30]} 19. Bf3 {[%emt 0:00:05]} Bxh5 {[%emt 0:00:42]} 20. Bxh5 {[%emt 0:00:05]} Bf6 {[%emt 0:01:10]} 21. Bf3 {[%emt 0:04:24]} a5 {[%emt 0:02:26]} 22. b4 {[%emt 0:01:47]} cxb3 {[%emt 0:07:13]} 23. Qxb3 {[%emt 0:00:10]} Bxh4 {[%emt 0:00:49]} 24. Nxd5 {[%emt 0:10:57]} Nxd5 {[%emt 0:01:59]} 25. Qxd5 {[%emt 0:00:05]} Qh3+ {[%emt 0:05:12]} 26. Kg1 {[%emt 0:00:04]} Bxg3 {[%emt 0:00:17]} 27. fxg3 {[%emt 0:00:05]} Qxg3+ {[%emt 0:00:05]} 28. Kh1 {[%emt 0:07:24]} Qh3+ {[%emt 0:00:16]} 29. Kg1 {[%emt 0:00:02]} Qg3+ {[%emt 0:00:22]} 30. Bg2 {[%emt 0:01:05]} Qxe3+ {[%emt 0:00:09]} 31. Rf2 {[%emt 0:00:09]} b4 {[%emt 0:00:41]} 32. axb4 {[%emt 0:01:04]} axb4 {[%emt 0:01:43]} 33. Qe4 {[%emt 0:01:18]} Qc3 {[%emt 0:03:24]} 34. Rb1 {[%emt 0:12:51]} b3 {[%emt 0:02:01]} 35. d5 {[%emt 0:01:27]} Qc5 {[%emt 0:02:35]} 36. Qd3 {[%emt 0:03:49]} Rfe8 {[%emt 0:03:34]} 37. Rxb3 {[%emt 0:01:00]} Re1+ {[%emt 0:00:09]} 38. Bf1 {[%emt 0:00:08]} Rd8 {[%emt 0:05:29]} 39. Rb5 {[%emt 0:00:05]} Qa7 {[%emt 0:00:28]} 40. d6 {[%emt 0:03:44]} (40. Qf5 $14) 40... Re6 $11 {[%emt 0:02:17]} 41. Rd5 {[%emt 0:01:28]} Rg6+ {[%emt 0:00:39]} 42. Bg2 {[%emt 0:00:29]} Qa1+ {[%emt 0:00:51]} 43. Rf1 {[%emt 0:00:02]} Qb2 $1 {[%emt 0:00:55]} 44. Rf2 {[%emt 0:00:23]} Qa1+ {[%emt 0:00:21]} 45. Rf1 {[%emt 0:00:09]} Qb2 $1 {[%emt 0:00:05]} 46. Qe4 {[%emt 0:02:27]} Qb6+ {[%emt 0:00:35]} 47. Kh1 {[%emt 0:00:02]} Rgxd6 {[%emt 0:00:27]} 48. Qe7 {[%emt 0:00:24]} Rxd5 {[%emt 0:01:05]} 49. Qxf7+ {[%emt 0:00:01]} Kh8 {[%emt 0:00:01]} 50. Bxd5 {[%emt 0:00:02]} Qd4 {[%emt 0:00:24]} 51. Bg2 {[%emt 0:00:45]} Qh4+ {[%emt 0:00:02]} 52. Kg1 {[%emt 0:00:01]} Qd4+ {[%emt 0:00:11]} 53. Kh1 {[%emt 0:00:02]} Qh4+ {[%emt 0:00:04]} 54. Kg1 {[%emt 0:00:01]} Qd4+ {[%emt 0:00:03]} 55. Rf2 {[%emt 0:00:31]} Rb8 {[%emt 0:00:08]} 56. Qf4 {[%emt 0:02:42]} Qxf4 {[%emt 0:01:06]} (56... Rb1+ {feels hotter.} 57. Kh2 Qxf4+ 58. Rxf4 g5) 57. Rxf4 {[%emt 0:00:02]} g5 {[%emt 0:00:37]} 58. Rf7 {[%emt 0:00:02]} Rd8 {[%emt 0:00:42]} 59. Kf2 {[%emt 0:00:14]} Kg8 {[%emt 0:00:01]} 60. Ra7 {[%emt 0:00:02]} Rd2+ {[%emt 0:00:20]} 61. Kg3 {[%emt 0:00:02]} h5 {[%emt 0:00:04]} 62. Be4 {[%emt 0:00:32]} Kf8 {[%emt 0:00:11]} 63. Bg6 {[%emt 0:00:05]} Rd4 {[%emt 0:00:20]} 64. Bxh5 {[%emt 0:00:09]} Rf4 {[%emt 0:00:02]} 65. Rb7 {[%emt 0:00:35]} Kg8 {[%emt 0:00:19]} 66. Rb5 {[%emt 0:00:23]} Kf8 {[%emt 0:00:07]} 67. Rxg5 {[%emt 0:00:07]} Re4 {[%emt 0:00:56]} 68. Bf3 {[%emt 0:00:44]} Re7 {[%emt 0:00:43]} 69. Ra5 {[%emt 0:00:11]} Kg7 {[%emt 0:00:07]} 70. Kf4 {[%emt 0:00:23]} Rf7+ {[%emt 0:00:04]} 71. Kg4 {[%emt 0:00:05]} Re7 {[%emt 0:00:11]} 72. Kg5 {[%emt 0:00:06]} Rf7 {[%emt 0:00:06]} 73. Bd5 {[%emt 0:00:19]} Re7 {[%emt 0:00:31]} 74. Kf5 {[%emt 0:00:33]} Rc7 {[%emt 0:01:28]} 75. Ra6 {[%emt 0:00:04]} Kf8 {[%emt 0:01:01]} 76. Rh6 {[%emt 0:00:56]} Ke7 {[%emt 0:00:04]} 77. Ke5 {[%emt 0:00:03]} Kd7 {[%emt 0:00:07]} 78. Rh8 {[%emt 0:00:16]} Ke7 $1 {[%emt 0:00:01]} 79. Rg8 {[%emt 0:00:49]} Kd7 {[%emt 0:00:11]} 80. Rg6 {[%emt 0:00:02]} Ke7 {[%emt 0:00:03]} 81. Rf6 {[%emt 0:00:09]} Kd7 {[%emt 0:00:12]} 82. Rh6 {[%emt 0:00:01]} Ke7 {[%emt 0:00:04]} 83. Bc6 {[%emt 0:00:01]} Kd8 {[%emt 0:00:03]} 84. Kd6 {[%emt 0:00:55]} Rd7+ $1 {[%emt 0:00:00]} 85. Kc5 {[%emt 0:00:05]} Rg7 {[%emt 0:00:24]} 86. Rh8+ {[%emt 0:00:22]} Ke7 {[%emt 0:00:36]} 87. Re8+ {[%emt 0:00:02]} Kf6 {[%emt 0:00:04]} 88. Kd6 {[%emt 0:00:04]} Kg5 {[%emt 0:00:10]} 89. Ke5 {[%emt 0:00:05]} Rg6 {[%emt 0:00:11]} 90. Bd5 {[%emt 0:00:19]} Rg7 {[%emt 0:00:23]} 91. Rh8 {[%emt 0:00:16]} Re7+ {[%emt 0:00:06]} 92. Be6 {[%emt 0:00:02]} Rg7 {[%emt 0:00:04]} 93. Rh1 {[%emt 0:00:02]} Rg6 {[%emt 0:00:06]} 94. Bf7 {[%emt 0:01:00]} Rg7 {[%emt 0:00:04]} 95. Rf1 {[%emt 0:00:03]} Kh6 {[%emt 0:00:03]} 96. Be8 {[%emt 0:00:30]} Kg5 {[%emt 0:00:21]} 97. Ke6 {[%emt 0:00:17]} Ra7 {[%emt 0:00:40]} 98. Bc6 {[%emt 0:00:26]} Ra6 {[%emt 0:00:12]} 99. Kd5 {[%emt 0:00:09]} Ra3 {[%emt 0:00:35]} 100. Ke4 {[%emt 0:00:05]} Rg3 {[%emt 0:00:28]} 101. Ke5 {[%emt 0:00:14]} Re3+ {[%emt 0:00:08]} 102. Be4 {[%emt 0:00:01]} Rg3 {[%emt 0:00:03]} 103. Bf3 {[%emt 0:00:05]} Kg6 {[%emt 0:00:38]} 104. Bd5 {[%emt 0:00:09]} Rg5+ {[%emt 0:00:12]} 105. Ke6 {[%emt 0:00:03]} Rg3 {[%emt 0:00:26]} 106. Be4+ {[%emt 0:00:02]} Kg5 {[%emt 0:00:10]} 107. Rf8 {[%emt 0:00:01]} Re3 {[%emt 0:00:08]} 108. Ke5 {[%emt 0:00:03]} Rg3 {[%emt 0:00:03]} 109. Bf3 {[%emt 0:01:31]} Kh4 {[%emt 0:00:01]} 110. Ke4 {[%emt 0:00:05]} Rg7 {[%emt 0:00:20]} 111. Rf5 {[%emt 0:00:37]} Rg5 {[%emt 0:00:08]} 112. Rf4+ {[%emt 0:00:10]} Kg3 {[%emt 0:00:05]} 113. Ke3 {[%emt 0:00:02]} Re5+ {[%emt 0:00:10]} 114. Be4 {[%emt 0:00:01]} Rg5 {[%emt 0:00:06]} 115. Rf1 {[%emt 0:00:05]} Kg4 {[%emt 0:00:22]} 116. Rh1 {[%emt 0:00:02]} Kg3 {[%emt 0:00:09]} 117. Rg1+ {[%emt 0:00:12]} Kh4 {[%emt 0:00:02]} 118. Rxg5 {[%emt 0:00:04]} Kxg5 {[%emt 0:00:02]} 1/2-1/2

[Event "14th BPB Limburg Open 2022"]
[Site "Maastricht"]
[Date "2022.06.06"]
[Round "7.3"]
[White "Zwirs, Nico"]
[Black "Braun, Christian"]
[Result "1/2-1/2"]
[ECO "C11"]
[WhiteElo "2468"]
[BlackElo "2426"]
[Annotator "TA"]
[PlyCount "62"]
[EventDate "2022.06.03"]
[EventType "swiss"]
[EventCountry "NED"]
[SourceTitle "playchess.com"]
[Source "ChessBase"]
[SourceQuality "1"]
[TimeControl "7200+15"]

{[%evp 15,62,3,12,12,6,0,14,7,12,6,18,8,24,0,13,-2,36,42,77,71,68,25,72,78,75,77,75,72,86,83,100,93,93,75,150,147,153,161,150,111,109,110,124,0,84,0,122,0,103]} 1. e4 {[%emt 0:00:03][%cal Be2e4,Be4e5][%mdl 32]} e6 {[%emt 0:00:08]} 2. d4 {[%emt 0:00:04]} d5 {[%emt 0:00:05]} 3. Nc3 {[%emt 0:00:06]} Nf6 {[%emt 0:00:05]} 4. e5 {[%emt 0:00:04]} Nfd7 {[%emt 0:00:06]} 5. f4 {[%emt 0:00:04]} c5 {[%emt 0:00:07]} 6. Nf3 {[%emt 0:00:02]} Nc6 {[%emt 0:00:08]} 7. Be3 {[%emt 0:00:06]} Be7 {[%emt 0:00:07]} 8. Qd2 {[%emt 0:00:17]} a6 {[%emt 0:00:07]} 9. Bd3 {[%emt 0:00:55] C11: French: Classical System: 4 e5 and 4 Bg5 dxe4.} b5 {[%emt 0:01:21]} 10. Qf2 {[%emt 0:01:06][%cal Rd4c5]} c4 {[%emt 0:00:23]} 11. Be2 {[%emt 0:00:11]} Nb6 {[%emt 0:00:23]} 12. O-O {[%emt 0:03:54] [#]} Bd7 $146 {[%emt 0:01:56]} ({Predecessor:} 12... b4 13. Nd1 a5 14. Qg3 g6 15. Nf2 Ba6 16. Ng5 c3 17. Bxa6 Rxa6 18. b3 Na8 {½-½ (48) Miladinovic,I (2535)-Indjic,A (2574) Ruma 2017}) 13. Qg3 {[%emt 0:06:46]} g6 {[%emt 0:00:18]} 14. Qh3 {[%emt 0:00:28]} h6 {[%emt 0:05:51]} 15. Bf2 {[%emt 0:09:30]} Qc7 {[%emt 0:03:06]} 16. Bh4 {[%emt 0:02:24]} O-O-O {[%emt 0:00:35][%cal Og6g5]} 17. Bxe7 {[%emt 0:01:16]} Nxe7 {[%emt 0:02:22]} 18. Nd1 {[%emt 0:00:08]} (18. Qh4 $5 {[%cal Rh4e7]} Nf5 19. Qf2 $11) 18... Kb8 {[%emt 0:04:33]} (18... g5 $11 {is more appropriate.}) 19. Ne3 $16 {[%emt 0:02:46]} Nf5 {[%emt 0:00:26]} 20. Nxf5 {[%emt 0:01:21]} gxf5 {[%emt 0:01:17]} 21. Qh4 {[%emt 0:12:01]} Rdg8 {[%emt 0:02:14]} 22. Qe1 {[%emt 0:00:17]} Nc8 {[%emt 0:02:39][%cal Bb6c8,Bc8e7,Be7c6][%mdl 32]} 23. b3 {[%emt 0:03:40]} Ne7 {[%emt 0:07:18]} 24. a4 {[%emt 0:03:33]} Bc6 {[%emt 0:04:35]} (24... Ng6 $142) 25. axb5 {[%emt 0:05:01]} Bxb5 {[%emt 0:01:30]} 26. Qb4 {[%emt 0:05:49] [#] Rxa6 is the strong threat.} Nc6 {[%emt 0:00:27]} 27. Qc5 {[%emt 0:03:31] Threatens to win with Rfb1.} Qe7 {[%emt 0:03:47]} 28. Qb6+ {[%emt 0:11:14]} Qb7 {[%emt 0:00:10]} 29. Qc5 {[%emt 0:00:10][%cal Rb3c4] White is more active.} Qe7 {[%emt 0:00:05]} 30. Qb6+ {[%emt 0:05:17]} Qb7 {[%emt 0:00:06]} 31. Qc5 {[%emt 0:00:09][%cal Rb3c4]} Qe7 {[%emt 1:21:45] Weighted Error Value: White=0.20 (precise) /Black=0.14 (very precise)} 1/2-1/2

[Event "14th BPB Limburg Open 2022"]
[Site "Maastricht"]
[Date "2022.06.06"]
[Round "7.4"]
[White "Lahaye, Rick"]
[Black "Decoster, Frederic"]
[Result "0-1"]
[ECO "A16"]
[WhiteElo "2410"]
[BlackElo "2293"]
[Annotator "TA"]
[PlyCount "80"]
[EventDate "2022.06.03"]
[EventType "swiss"]
[EventCountry "NED"]
[SourceTitle "playchess.com"]
[Source "ChessBase"]
[SourceQuality "1"]
[TimeControl "7200+15"]

{[%evp 9,80,0,-8,0,0,-2,21,24,31,22,24,18,17,0,18,8,25,-35,89,19,34,40,35,41,46,37,98,103,91,0,112,110,100,0,0,0,0,0,0,0,0,0,0,0,0,0,0,-103,-106,-105,-108,-117,-120,-116,0,0,0,-113,-100,-95,-16,0,0,-513,-510,-502,-480,-705,-615,-1089,-1048,-896,90]} 1. e3 {[%emt 0:00:02]} g6 {[%emt 0:01:23]} 2. c4 {[%emt 0:01:13]} Nf6 {[%emt 0:00:14]} 3. Nc3 {[%emt 0:00:29]} Bg7 {[%emt 0:00:13]} 4. g4 {[%emt 0:00:26]} h6 {[%emt 0:02:31]} 5. Bg2 {[%emt 0:00:34]} d6 {[%emt 0:01:40]} 6. h3 {[%emt 0:01:20] A16: English Opening: 1...Nf6 with ...d5.} e5 {[%emt 0:01:41]} 7. Nge2 {[%emt 0:00:13]} O-O {[%emt 0:02:42]} 8. d4 {[%emt 0:01:17] The position is equal.} Nbd7 {[%emt 0:07:54]} 9. O-O {[%emt 0:07:48]} Re8 {[%emt 0:05:32] [#]} 10. Ng3 $146 {[%emt 0:06:54]} ({Predecessor:} 10. b3 a6 11. Ng3 Rb8 12. a4 Nh7 13. d5 Qh4 14. e4 Bf6 15. Nge2 Bg5 16. Rb1 {½-½ (31) Hechl,G (2359)-Volkmann,F (2403) Austria 2019}) 10... a6 {[%emt 0:09:55]} 11. a4 {[%emt 0:09:42]} a5 {[%emt 0:03:48]} 12. f4 {[%emt 0:01:32]} c6 {[%emt 0:06:22]} 13. Nce4 {[%emt 0:25:51]} (13. b3 $11) 13... Qc7 {[%emt 0:04:02]} (13... Nxe4 $15 {keeps the upper hand.} 14. Nxe4 exd4) 14. c5 {[%emt 0:04:16]} (14. dxe5 $1 $16 dxe5 15. f5) 14... exf4 {[%emt 0:17:37]} 15. cxd6 {[%emt 0:01:17]} Qd8 {[%emt 0:00:37]} 16. Rxf4 {[%emt 0:00:39]} Nxe4 {[%emt 0:03:28]} 17. Nxe4 {[%emt 0:00:40]} Nf6 {[%emt 0:01:06]} (17... Nb6 $14) 18. Nxf6+ $16 {[%emt 0:07:35]} ({Don't take} 18. Qb3 Rxe4 19. Bxe4 g5 20. Rxf6 Bxf6 $14) 18... Bxf6 {[%emt 0:00:07]} 19. Qf3 {[%emt 0:00:07]} (19. Qf1 $1 $16 Re6 20. b3) 19... Bg5 {[%emt 0:11:30]} (19... Re6 $11 {remains equal.}) 20. Rxf7 {[%emt 0:01:54] And now e4 would win.} Qxd6 {[%emt 0:01:17]} 21. Bd2 {[%emt 0:00:47]} ({White should try} 21. Qf2 $1 $16) 21... Be6 $1 $11 {[%emt 0:03:05]} 22. Rxb7 {[%emt 0:00:46]} Bd5 {[%emt 0:01:51]} 23. Qf2 {[%emt 0:17:02][%cal Oe3e4]} Rf8 $1 {[%emt 0:03:09]} 24. Bxd5+ {[%emt 0:00:52]} Qxd5 {[%emt 0:01:30] The board is on fire.} 25. Qg2 {[%emt 0:03:24]} Rf3 {[%emt 0:01:18] Hoping for ...Raf8.} 26. Rf1 $1 {[%emt 0:01:55]} Raf8 {[%emt 0:00:58]} 27. Rxf3 {[%emt 0:00:49]} Rxf3 {[%emt 0:01:04]} 28. Rb8+ {[%emt 0:15:42]} (28. Qe2 $1 $11 Bh4 29. Bc3 (29. Rb8+ Kh7 $11)) 28... Kf7 $1 $17 {[%emt 0:02:32][%mdl 1024] Black has strong compensation.} 29. Rb7+ {[%emt 0:01:29]} Ke8 {[%emt 0:02:21]} 30. Rb8+ {[%emt 0:02:49]} Kd7 {[%emt 0:00:45] White must now prevent ...Bh4.} 31. Rb7+ {[%emt 0:07:01]} Kc8 {[%emt 0:00:12]} ({Better is} 31... Ke6 $1 $17 32. Rb8 Kd7 33. Rb7+ Ke6) 32. Rh7 $1 $11 {[%emt 0:01:05]} Kd8 {[%emt 0:05:59]} 33. Rh8+ {[%emt 0:00:16]} (33. Kh2 $11) 33... Ke7 $17 {[%emt 0:05:52] Black is more active.} 34. Rh7+ {[%emt 0:00:01]} Kf8 {[%emt 0:00:14]} (34... Ke8 $17 35. Rh8+ Ke7 36. Rh7+ Ke8 37. Rh8+ Ke7) 35. Rh8+ $1 $11 {[%emt 0:00:39]} Kg7 {[%emt 0:00:08]} 36. Ra8 {[%emt 0:00:12][%mdl 8192] [#]} (36. Re8 $1 $11 {and White is okay.}) 36... Bh4 $1 $19 {[%emt 0:00:38] ...Rg3 is the strong threat. Black is clearly winning.} 37. Ra7+ {[%emt 0:00:29]} Kf6 {[%emt 0:00:35] Threatens to win with ...Rg3.} 38. Rxa5 {[%emt 0:00:15] [#]} (38. g5+ $142 hxg5 39. Bc3 (39. Bxa5 $2 Rg3 $19) (39. Rxa5 $2 Qe4 $19)) 38... Qe4 $1 {[%emt 0:00:13]} 39. Re5 {[%emt 0:00:38]} Qb1+ {[%emt 0:13:57]} 40. Kh2 Bg3+ $2 {[%emt 0:00:15][%mdl 32768] Weighted Error Value: White=0.58/Black=0.19 (very precise) . Loss on time!?} (40... Rf2 $19 41. Qxf2+ Bxf2) 0-1

[Event "14th BPB Limburg Open 2022"]
[Site "Maastricht"]
[Date "2022.06.06"]
[Round "7.5"]
[White "Pauly, Carlo"]
[Black "Ondersteijn, Niels"]
[Result "0-1"]
[ECO "E94"]
[WhiteElo "2297"]
[BlackElo "2376"]
[Annotator "TA"]
[PlyCount "92"]
[EventDate "2022.06.03"]
[EventType "swiss"]
[EventCountry "NED"]
[SourceTitle "playchess.com"]
[Source "ChessBase"]
[SourceQuality "1"]
[TimeControl "7200+15"]

{[%evp 16,92,48,41,87,52,100,72,73,73,73,41,41,39,41,39,38,32,38,37,53,48,66,45,56,45,60,29,53,-24,0,-128,-119,-191,-133,-183,-172,-212,-207,-178,-150,-137,-137,-307,-307,-334,-328,-349,-55,-47,-44,-46,-55,-40,-32,-57,-41,-60,-39,-68,-42,-51,-47,-37,-50,-773,-787,-751,-751,-739,-703,-5428,-11775,-29986,-29987,-29991,-29992,-29992,-5251]} 1. d4 {[%emt 0:00:07]} d6 {[%emt 0:04:23]} 2. Nf3 {[%emt 0:00:47]} Nf6 {[%emt 0:00:14]} 3. c4 {[%emt 0:00:10]} g6 {[%emt 0:00:05]} 4. Nc3 {[%emt 0:00:26]} Bg7 {[%emt 0:00:06]} 5. e4 {[%emt 0:00:14]} O-O {[%emt 0:00:08]} 6. Be2 {[%emt 0:00:08]} Nbd7 {[%emt 0:00:08]} 7. O-O {[%emt 0:01:56]} e5 {[%emt 0:00:05]} 8. Be3 {[%emt 0:01:13]} Qe7 {[%emt 0:00:29]} 9. d5 {[%emt 0:02:08]} c5 $1 {[%emt 0:02:53][%mdl 4] outshines the older 9...Ng4. E94: King's Indian: Classical: 6 Be2 e5 7 0-0: Various Black 7th moves.} (9... Ng4 $14) 10. Ne1 {[%emt 0:03:06]} Kh8 {[%emt 0:00:36]} (10... Ne8 $14 {deserves consideration.}) 11. Nd3 {[%emt 0:02:49]} Ng8 {[%emt 0:00:52] White is better.} 12. Qd2 {[%emt 0:01:19]} f5 {[%emt 0:02:31]} 13. exf5 {[%emt 0:07:59]} gxf5 {[%emt 0:00:13] Hoping for ...f4.} 14. f4 {[%emt 0:01:00]} e4 {[%emt 0:02:57]} 15. Nf2 {[%emt 0:01:03]} Ndf6 {[%emt 0:04:36] [#]} 16. a3 $146 {[%emt 0:03:33]} ({Predecessor:} 16. h3 h5 17. g3 Qf7 18. Kh2 Ne7 19. Rg1 Bd7 20. a4 Rg8 21. Rg2 Bh6 22. Rh1 {1-0 (39) Menezes,C (2411)-Jankovic,A (2579) Austria 2017}) 16... b6 {[%emt 0:04:52]} 17. b4 {[%emt 0:03:13]} h5 {[%emt 0:00:38]} 18. h3 {[%emt 0:07:31]} Nh6 {[%emt 0:12:45]} 19. bxc5 {[%emt 0:03:34]} bxc5 {[%emt 0:02:51]} 20. Rfb1 {[%emt 0:01:06]} Rg8 {[%emt 0:03:38]} 21. Ra2 {[%emt 0:02:38]} Kh7 {[%emt 0:10:16]} 22. Bd1 {[%emt 0:08:57]} (22. Nfd1 $14) 22... Bh8 {[%emt 0:14:21]} 23. Nh1 {[%emt 0:03:38] [#]} (23. Ba4 $11 {remains equal.}) 23... Nd7 $1 $17 {[%emt 0:03:23]} 24. Rc1 {[%emt 0:30:42]} (24. Bxh5 $2 Nb6 25. Qc1 Nxc4 $19) (24. Qc1 $17 {only move.}) 24... Rb8 {[%emt 0:05:21]} (24... Ba6 $19 25. Nb5 Bxb5 26. cxb5 Qh4) 25. Qf2 {[%emt 0:09:21]} (25. Kh2 $17 {was called for.}) 25... Ba6 $19 {[%emt 0:12:42]} 26. Nb5 {[%emt 0:02:50]} Bxb5 {[%emt 0:00:54]} 27. cxb5 {[%emt 0:00:04]} Nf6 {[%emt 0:03:24]} 28. Rd2 {[%emt 0:05:09]} Rxb5 {[%emt 0:00:28]} 29. Qh4 $2 {[%emt 0:01:00]} (29. Ng3 $17 {was worth a try.}) 29... Qf7 {[%emt 0:04:46]} 30. Ng3 {[%emt 0:04:06]} Nxd5 {[%emt 0:04:17]} 31. Bxh5 {[%emt 0:06:49] [#]} Qf6 {[%emt 0:02:32]} ({Black should play} 31... Qe6 $1 $19 32. Nf1 Rb3) 32. Qxf6 $15 {[%emt 0:00:08]} Nxf6 {[%emt 0:01:08][%cal Bd5f6,Bf6h5,Bh5f4][%mdl 32] Chess con chili. Pair of Knights!} 33. Be2 {[%emt 0:00:13] [#]} Rxg3 $1 {[%emt 0:02:47]} 34. Bxb5 {[%emt 0:00:11] Threatens to win with Kf2.} Rxe3 {[%emt 0:00:11]} 35. Rxd6 {[%emt 0:00:30]} Nh5 {[%emt 0:05:39]} 36. Rxc5 {[%emt 0:01:20]} Nxf4 {[%emt 0:01:14]} 37. Rc7+ {[%emt 0:01:10]} Bg7 {[%emt 0:00:08]} 38. Rxa7 {[%emt 0:00:23]} Rg3 {[%emt 0:00:28][%csl LRg2,LRh3]} 39. Bf1 {[%emt 0:00:28]} e3 {[%emt 0:03:23] aiming for ...Rg5.} 40. Kh2 $2 {[%emt 0:02:17][%mdl 8192]} ({Avoid the trap} 40. Re7 $2 Ng8 41. Rb7 Rg5 $19) (40. a4 $15) 40... e2 $19 {[%emt 0:01:31]} 41. Bxe2 {[%emt 0:00:15]} Rxg2+ {[%emt 0:00:07]} ({Stronger than} 41... Nxe2 42. Re7 $11 (42. Re6 Rxg2+ 43. Kxg2 Nf4+ 44. Kf1 Nxe6 $17)) 42. Kh1 {[%emt 0:00:03]} Rxe2 {[%emt 0:00:11]} 43. Rdd7 {[%emt 0:00:41]} Nh5 {[%emt 0:00:20] ( -> ...f4)} 44. a4 {[%emt 0:00:30]} f4 {[%emt 0:00:54] Black mates.} 45. Rd3 {[%emt 0:00:49]} Nf5 {[%emt 0:02:16]} 46. Kg1 {[%emt 0:01:55]} Ne3 {[%emt 0:00:19] Weighted Error Value: White=0.79/Black=0.24 (precise)} (46... Nhg3 $142 47. h4 Nxh4 48. Rxg3 fxg3 49. Kf1 Rf2+ 50. Ke1 Nf3+ 51. Kd1 g2 52. Rxg7+ Kxg7 53. Kc1 g1=Q#) 0-1